{"text_format":"3","workbook":"xlsx","n_sheets":4,"sheets":["DOGAĐAJI","KALENDAR","VERZIJA ISPIS","ADMINISTRATOR"],"not_rendered":{"defined_names":18},"read":"whole","date_system":"1900"}

{"sheet":"DOGAĐAJI","index":0,"n_rows":38,"n_cols":5,"rows_kept":38}
[]
[null,"MJESEČNA ZAJEDNICA"]
[null,"PLANER DOGAĐAJA"]
[]
[]
[]
[]
[null,"DATUM","DAN","MJESEC","NAZIV DOGAĐAJA"]
[null,"2016-07-01",{"$f":"IF(ISBLANK(tablDogađaji[[#This Row],[DATUM]]),\"\",UPPER(TEXT(tablDogađaji[[#This Row],[DATUM]],\"ddd\")))","v":"PET"},{"$f":"IF(ISBLANK(tablDogađaji[[#This Row],[DATUM]]),\"\",UPPER(TEXT(tablDogađaji[[#This Row],[DATUM]],\"mmm\")))","v":"SRP"},"Općinski vrt"]
[null,"2016-07-01",{"$f":"IF(ISBLANK(tablDogađaji[[#This Row],[DATUM]]),\"\",UPPER(TEXT(tablDogađaji[[#This Row],[DATUM]],\"ddd\")))","v":"PET"},{"$f":"IF(ISBLANK(tablDogađaji[[#This Row],[DATUM]]),\"\",UPPER(TEXT(tablDogađaji[[#This Row],[DATUM]],\"mmm\")))","v":"SRP"},"Gradsko vijeće"]
[null,"2016-07-02",{"$f":"IF(ISBLANK(tablDogađaji[[#This Row],[DATUM]]),\"\",UPPER(TEXT(tablDogađaji[[#This Row],[DATUM]],\"ddd\")))","v":"SUB"},{"$f":"IF(ISBLANK(tablDogađaji[[#This Row],[DATUM]]),\"\",UPPER(TEXT(tablDogađaji[[#This Row],[DATUM]],\"mmm\")))","v":"SRP"},"Općinski vrt"]
[null,"2016-07-03",{"$f":"IF(ISBLANK(tablDogađaji[[#This Row],[DATUM]]),\"\",UPPER(TEXT(tablDogađaji[[#This Row],[DATUM]],\"ddd\")))","v":"NED"},{"$f":"IF(ISBLANK(tablDogađaji[[#This Row],[DATUM]]),\"\",UPPER(TEXT(tablDogađaji[[#This Row],[DATUM]],\"mmm\")))","v":"SRP"},"Noćno kino na otvorenom"]
[null,"2016-07-08",{"$f":"IF(ISBLANK(tablDogađaji[[#This Row],[DATUM]]),\"\",UPPER(TEXT(tablDogađaji[[#This Row],[DATUM]],\"ddd\")))","v":"PET"},{"$f":"IF(ISBLANK(tablDogađaji[[#This Row],[DATUM]]),\"\",UPPER(TEXT(tablDogađaji[[#This Row],[DATUM]],\"mmm\")))","v":"SRP"},"Gradsko vijeće"]
[null,"2016-07-11",{"$f":"IF(ISBLANK(tablDogađaji[[#This Row],[DATUM]]),\"\",UPPER(TEXT(tablDogađaji[[#This Row],[DATUM]],\"ddd\")))","v":"PON"},{"$f":"IF(ISBLANK(tablDogađaji[[#This Row],[DATUM]]),\"\",UPPER(TEXT(tablDogađaji[[#This Row],[DATUM]],\"mmm\")))","v":"SRP"},"Gospodarska komora Ručak"]
[null,"2016-07-12",{"$f":"IF(ISBLANK(tablDogađaji[[#This Row],[DATUM]]),\"\",UPPER(TEXT(tablDogađaji[[#This Row],[DATUM]],\"ddd\")))","v":"UTO"},{"$f":"IF(ISBLANK(tablDogađaji[[#This Row],[DATUM]]),\"\",UPPER(TEXT(tablDogađaji[[#This Row],[DATUM]],\"mmm\")))","v":"SRP"},"Izložba antikviteta"]
[null,"2016-07-14",{"$f":"IF(ISBLANK(tablDogađaji[[#This Row],[DATUM]]),\"\",UPPER(TEXT(tablDogađaji[[#This Row],[DATUM]],\"ddd\")))","v":"ČET"},{"$f":"IF(ISBLANK(tablDogađaji[[#This Row],[DATUM]]),\"\",UPPER(TEXT(tablDogađaji[[#This Row],[DATUM]],\"mmm\")))","v":"SRP"},"Radionica u zajednici"]
[null,"2016-07-15",{"$f":"IF(ISBLANK(tablDogađaji[[#This Row],[DATUM]]),\"\",UPPER(TEXT(tablDogađaji[[#This Row],[DATUM]],\"ddd\")))","v":"PET"},{"$f":"IF(ISBLANK(tablDogađaji[[#This Row],[DATUM]]),\"\",UPPER(TEXT(tablDogađaji[[#This Row],[DATUM]],\"mmm\")))","v":"SRP"},"Gradsko vijeće"]
[null,"2016-07-19",{"$f":"IF(ISBLANK(tablDogađaji[[#This Row],[DATUM]]),\"\",UPPER(TEXT(tablDogađaji[[#This Row],[DATUM]],\"ddd\")))","v":"UTO"},{"$f":"IF(ISBLANK(tablDogađaji[[#This Row],[DATUM]]),\"\",UPPER(TEXT(tablDogađaji[[#This Row],[DATUM]],\"mmm\")))","v":"SRP"},"Radionica o strateškom planiranju"]
[null,"2016-07-20",{"$f":"IF(ISBLANK(tablDogađaji[[#This Row],[DATUM]]),\"\",UPPER(TEXT(tablDogađaji[[#This Row],[DATUM]],\"ddd\")))","v":"SRI"},{"$f":"IF(ISBLANK(tablDogađaji[[#This Row],[DATUM]]),\"\",UPPER(TEXT(tablDogađaji[[#This Row],[DATUM]],\"mmm\")))","v":"SRP"},"Čišćenje partka"]
[null,"2016-07-22",{"$f":"IF(ISBLANK(tablDogađaji[[#This Row],[DATUM]]),\"\",UPPER(TEXT(tablDogađaji[[#This Row],[DATUM]],\"ddd\")))","v":"PET"},{"$f":"IF(ISBLANK(tablDogađaji[[#This Row],[DATUM]]),\"\",UPPER(TEXT(tablDogađaji[[#This Row],[DATUM]],\"mmm\")))","v":"SRP"},"Gradsko vijeće"]
[null,"2016-07-26",{"$f":"IF(ISBLANK(tablDogađaji[[#This Row],[DATUM]]),\"\",UPPER(TEXT(tablDogađaji[[#This Row],[DATUM]],\"ddd\")))","v":"UTO"},{"$f":"IF(ISBLANK(tablDogađaji[[#This Row],[DATUM]]),\"\",UPPER(TEXT(tablDogađaji[[#This Row],[DATUM]],\"mmm\")))","v":"SRP"},"Šetnja centrom"]
[null,"2016-07-26",{"$f":"IF(ISBLANK(tablDogađaji[[#This Row],[DATUM]]),\"\",UPPER(TEXT(tablDogađaji[[#This Row],[DATUM]],\"ddd\")))","v":"UTO"},{"$f":"IF(ISBLANK(tablDogađaji[[#This Row],[DATUM]]),\"\",UPPER(TEXT(tablDogađaji[[#This Row],[DATUM]],\"mmm\")))","v":"SRP"},"Obilazak gostionica"]
[null,"2016-07-29",{"$f":"IF(ISBLANK(tablDogađaji[[#This Row],[DATUM]]),\"\",UPPER(TEXT(tablDogađaji[[#This Row],[DATUM]],\"ddd\")))","v":"PET"},{"$f":"IF(ISBLANK(tablDogađaji[[#This Row],[DATUM]]),\"\",UPPER(TEXT(tablDogađaji[[#This Row],[DATUM]],\"mmm\")))","v":"SRP"},"Gradsko vijeće"]
[null,"2016-08-05",{"$f":"IF(ISBLANK(tablDogađaji[[#This Row],[DATUM]]),\"\",UPPER(TEXT(tablDogađaji[[#This Row],[DATUM]],\"ddd\")))","v":"PET"},{"$f":"IF(ISBLANK(tablDogađaji[[#This Row],[DATUM]]),\"\",UPPER(TEXT(tablDogađaji[[#This Row],[DATUM]],\"mmm\")))","v":"KOL"},"Gradsko vijeće"]
[null,"2016-08-10",{"$f":"IF(ISBLANK(tablDogađaji[[#This Row],[DATUM]]),\"\",UPPER(TEXT(tablDogađaji[[#This Row],[DATUM]],\"ddd\")))","v":"SRI"},{"$f":"IF(ISBLANK(tablDogađaji[[#This Row],[DATUM]]),\"\",UPPER(TEXT(tablDogađaji[[#This Row],[DATUM]],\"mmm\")))","v":"KOL"},"Čišćenje partka"]
[null,"2016-08-12",{"$f":"IF(ISBLANK(tablDogađaji[[#This Row],[DATUM]]),\"\",UPPER(TEXT(tablDogađaji[[#This Row],[DATUM]],\"ddd\")))","v":"PET"},{"$f":"IF(ISBLANK(tablDogađaji[[#This Row],[DATUM]]),\"\",UPPER(TEXT(tablDogađaji[[#This Row],[DATUM]],\"mmm\")))","v":"KOL"},"Gradsko vijeće"]
[null,"2016-08-13",{"$f":"IF(ISBLANK(tablDogađaji[[#This Row],[DATUM]]),\"\",UPPER(TEXT(tablDogađaji[[#This Row],[DATUM]],\"ddd\")))","v":"SUB"},{"$f":"IF(ISBLANK(tablDogađaji[[#This Row],[DATUM]]),\"\",UPPER(TEXT(tablDogađaji[[#This Row],[DATUM]],\"mmm\")))","v":"KOL"},"Općinski vrt"]
[null,"2016-09-01",{"$f":"IF(ISBLANK(tablDogađaji[[#This Row],[DATUM]]),\"\",UPPER(TEXT(tablDogađaji[[#This Row],[DATUM]],\"ddd\")))","v":"ČET"},{"$f":"IF(ISBLANK(tablDogađaji[[#This Row],[DATUM]]),\"\",UPPER(TEXT(tablDogađaji[[#This Row],[DATUM]],\"mmm\")))","v":"RUJ"},"Odbor za proračun"]
[null,"2016-10-01",{"$f":"IF(ISBLANK(tablDogađaji[[#This Row],[DATUM]]),\"\",UPPER(TEXT(tablDogađaji[[#This Row],[DATUM]],\"ddd\")))","v":"SUB"},{"$f":"IF(ISBLANK(tablDogađaji[[#This Row],[DATUM]]),\"\",UPPER(TEXT(tablDogađaji[[#This Row],[DATUM]],\"mmm\")))","v":"LIS"},"Odbor za proračun"]
[null,"2016-11-03",{"$f":"IF(ISBLANK(tablDogađaji[[#This Row],[DATUM]]),\"\",UPPER(TEXT(tablDogađaji[[#This Row],[DATUM]],\"ddd\")))","v":"ČET"},{"$f":"IF(ISBLANK(tablDogađaji[[#This Row],[DATUM]]),\"\",UPPER(TEXT(tablDogađaji[[#This Row],[DATUM]],\"mmm\")))","v":"STU"},"Odbor za proračun"]
[null,"2016-12-01",{"$f":"IF(ISBLANK(tablDogađaji[[#This Row],[DATUM]]),\"\",UPPER(TEXT(tablDogađaji[[#This Row],[DATUM]],\"ddd\")))","v":"ČET"},{"$f":"IF(ISBLANK(tablDogađaji[[#This Row],[DATUM]]),\"\",UPPER(TEXT(tablDogađaji[[#This Row],[DATUM]],\"mmm\")))","v":"PRO"},"Odbor za proračun"]
[null,"2017-01-01",{"$f":"IF(ISBLANK(tablDogađaji[[#This Row],[DATUM]]),\"\",UPPER(TEXT(tablDogađaji[[#This Row],[DATUM]],\"ddd\")))","v":"NED"},{"$f":"IF(ISBLANK(tablDogađaji[[#This Row],[DATUM]]),\"\",UPPER(TEXT(tablDogađaji[[#This Row],[DATUM]],\"mmm\")))","v":"SIJ"},"Odbor za proračun"]
[null,"2017-02-02",{"$f":"IF(ISBLANK(tablDogađaji[[#This Row],[DATUM]]),\"\",UPPER(TEXT(tablDogađaji[[#This Row],[DATUM]],\"ddd\")))","v":"ČET"},{"$f":"IF(ISBLANK(tablDogađaji[[#This Row],[DATUM]]),\"\",UPPER(TEXT(tablDogađaji[[#This Row],[DATUM]],\"mmm\")))","v":"VLJ"},"Odbor za proračun"]
[null,"2017-03-02",{"$f":"IF(ISBLANK(tablDogađaji[[#This Row],[DATUM]]),\"\",UPPER(TEXT(tablDogađaji[[#This Row],[DATUM]],\"ddd\")))","v":"ČET"},{"$f":"IF(ISBLANK(tablDogađaji[[#This Row],[DATUM]]),\"\",UPPER(TEXT(tablDogađaji[[#This Row],[DATUM]],\"mmm\")))","v":"OŽU"},"Odbor za proračun"]
[null,"2017-04-01",{"$f":"IF(ISBLANK(tablDogađaji[[#This Row],[DATUM]]),\"\",UPPER(TEXT(tablDogađaji[[#This Row],[DATUM]],\"ddd\")))","v":"SUB"},{"$f":"IF(ISBLANK(tablDogađaji[[#This Row],[DATUM]]),\"\",UPPER(TEXT(tablDogađaji[[#This Row],[DATUM]],\"mmm\")))","v":"TRA"},"Odbor za proračun"]
[null,"2017-05-01",{"$f":"IF(ISBLANK(tablDogađaji[[#This Row],[DATUM]]),\"\",UPPER(TEXT(tablDogađaji[[#This Row],[DATUM]],\"ddd\")))","v":"PON"},{"$f":"IF(ISBLANK(tablDogađaji[[#This Row],[DATUM]]),\"\",UPPER(TEXT(tablDogađaji[[#This Row],[DATUM]],\"mmm\")))","v":"SVI"},"Odbor za proračun"]
[null,"2017-06-01",{"$f":"IF(ISBLANK(tablDogađaji[[#This Row],[DATUM]]),\"\",UPPER(TEXT(tablDogađaji[[#This Row],[DATUM]],\"ddd\")))","v":"ČET"},{"$f":"IF(ISBLANK(tablDogađaji[[#This Row],[DATUM]]),\"\",UPPER(TEXT(tablDogađaji[[#This Row],[DATUM]],\"mmm\")))","v":"LIP"},"Odbor za proračun"]
[null,"2017-06-02",{"$f":"IF(ISBLANK(tablDogađaji[[#This Row],[DATUM]]),\"\",UPPER(TEXT(tablDogađaji[[#This Row],[DATUM]],\"ddd\")))","v":"PET"},{"$f":"IF(ISBLANK(tablDogađaji[[#This Row],[DATUM]]),\"\",UPPER(TEXT(tablDogađaji[[#This Row],[DATUM]],\"mmm\")))","v":"LIP"},"Gradsko vijeće"]

{"sheet":"KALENDAR","index":1,"n_rows":35,"n_cols":21,"rows_kept":35,"merged":[[1,5,1,11],[30,8,34,20]]}
[]
[null,null,2016,null,null,{"$f":"LOOKUP(BrojMjeseca,tablMjeseci[BROJ],tablMjeseci[MJESEC])","v":"SRPANJ"}]
[null,null,7,null,null,{"$f":"DATE(PrikazGodine,BrojMjeseca,1)","v":"2016-07-01"},null,null,{"$f":"WEEKDAY(DatumPočetka)","v":6}]
[null,null,"PON",null,null,"UTO",null,null,"SRI",null,null,"ČET",null,null,"PET",null,null,"SUB",null,null,"NED"]
[]
[null,null,{"$f":"DatumPočetka-(WEEKDAY(DatumPočetka)-2)+{0;1;2;3;4;5}*7 +{1,2,3,4,5,6,7}-3+COLUMN(B1)","v":"2016-06-27"},null,null,{"$f":"DatumPočetka-(WEEKDAY(DatumPočetka)-2)+{0;1;2;3;4;5}*7 +{1,2,3,4,5,6,7}-3+COLUMN(C1)","v":"2016-06-28"},null,null,{"$f":"DatumPočetka-(WEEKDAY(DatumPočetka)-2)+{0;1;2;3;4;5}*7 +{1,2,3,4,5,6,7}-3+COLUMN(D1)","v":"2016-06-29"},null,null,{"$f":"DatumPočetka-(WEEKDAY(DatumPočetka)-2)+{0;1;2;3;4;5}*7 +{1,2,3,4,5,6,7}-3+COLUMN(E1)","v":"2016-06-30"},null,null,{"$f":"DatumPočetka-(WEEKDAY(DatumPočetka)-2)+{0;1;2;3;4;5}*7 +{1,2,3,4,5,6,7}-3+COLUMN(F1)","v":"2016-07-01"},null,null,{"$f":"DatumPočetka-(WEEKDAY(DatumPočetka)-2)+{0;1;2;3;4;5}*7 +{1,2,3,4,5,6,7}-3+COLUMN(G1)","v":"2016-07-02"},null,null,{"$f":"DatumPočetka-(WEEKDAY(DatumPočetka)-2)+{0;1;2;3;4;5}*7 +{1,2,3,4,5,6,7}-3+COLUMN(H1)","v":"2016-07-03"}]
[null,null,{"$f":"IFERROR(INDEX(tablDogađaji[],SMALL(IF(Datumi=C$6,ROW(Datumi)),ROW(1:1))-PočetakRetkaTablice,4),\"\")","v":""},null,null,{"$f":"IFERROR(INDEX(tablDogađaji[],SMALL(IF(Datumi=F$6,ROW(Datumi)),ROW(1:1))-PočetakRetkaTablice,4),\"\")","v":""},null,null,{"$f":"IFERROR(INDEX(tablDogađaji[],SMALL(IF(Datumi=I$6,ROW(Datumi)),ROW(1:1))-PočetakRetkaTablice,4),\"\")","v":""},null,null,{"$f":"IFERROR(INDEX(tablDogađaji[],SMALL(IF(Datumi=L$6,ROW(Datumi)),ROW(1:1))-PočetakRetkaTablice,4),\"\")","v":""},null,null,{"$f":"IFERROR(INDEX(tablDogađaji[],SMALL(IF(Datumi=O$6,ROW(Datumi)),ROW(1:1))-PočetakRetkaTablice,4),\"\")","v":"Općinski vrt"},null,null,{"$f":"IFERROR(INDEX(tablDogađaji[],SMALL(IF(Datumi=R$6,ROW(Datumi)),ROW(1:1))-PočetakRetkaTablice,4),\"\")","v":"Općinski vrt"},null,null,{"$f":"IFERROR(INDEX(tablDogađaji[],SMALL(IF(Datumi=U$6,ROW(Datumi)),ROW(1:1))-PočetakRetkaTablice,4),\"\")","v":"Noćno kino na otvorenom"}]
[null,null,{"$f":"IFERROR(INDEX(tablDogađaji[],SMALL(IF(Datumi=C$6,ROW(Datumi)),ROW(2:2))-PočetakRetkaTablice,4),\"\")","v":""},null,null,{"$f":"IFERROR(INDEX(tablDogađaji[],SMALL(IF(Datumi=F$6,ROW(Datumi)),ROW(2:2))-PočetakRetkaTablice,4),\"\")","v":""},null,null,{"$f":"IFERROR(INDEX(tablDogađaji[],SMALL(IF(Datumi=I$6,ROW(Datumi)),ROW(2:2))-PočetakRetkaTablice,4),\"\")","v":""},null,null,{"$f":"IFERROR(INDEX(tablDogađaji[],SMALL(IF(Datumi=L$6,ROW(Datumi)),ROW(2:2))-PočetakRetkaTablice,4),\"\")","v":""},null,null,{"$f":"IFERROR(INDEX(tablDogađaji[],SMALL(IF(Datumi=O$6,ROW(Datumi)),ROW(2:2))-PočetakRetkaTablice,4),\"\")","v":"Gradsko vijeće"},null,null,{"$f":"IFERROR(INDEX(tablDogađaji[],SMALL(IF(Datumi=R$6,ROW(Datumi)),ROW(2:2))-PočetakRetkaTablice,4),\"\")","v":""},null,null,{"$f":"IFERROR(INDEX(tablDogađaji[],SMALL(IF(Datumi=U$6,ROW(Datumi)),ROW(2:2))-PočetakRetkaTablice,4),\"\")","v":""}]
[null,null,{"$f":"IFERROR(INDEX(tablDogađaji[],SMALL(IF(Datumi=C$6,ROW(Datumi)),ROW(3:3))-PočetakRetkaTablice,4),\"\")","v":""},null,null,{"$f":"IFERROR(INDEX(tablDogađaji[],SMALL(IF(Datumi=F$6,ROW(Datumi)),ROW(3:3))-PočetakRetkaTablice,4),\"\")","v":""},null,null,{"$f":"IFERROR(INDEX(tablDogađaji[],SMALL(IF(Datumi=I$6,ROW(Datumi)),ROW(3:3))-PočetakRetkaTablice,4),\"\")","v":""},null,null,{"$f":"IFERROR(INDEX(tablDogađaji[],SMALL(IF(Datumi=L$6,ROW(Datumi)),ROW(3:3))-PočetakRetkaTablice,4),\"\")","v":""},null,null,{"$f":"IFERROR(INDEX(tablDogađaji[],SMALL(IF(Datumi=O$6,ROW(Datumi)),ROW(3:3))-PočetakRetkaTablice,4),\"\")","v":""},null,null,{"$f":"IFERROR(INDEX(tablDogađaji[],SMALL(IF(Datumi=R$6,ROW(Datumi)),ROW(3:3))-PočetakRetkaTablice,4),\"\")","v":""},null,null,{"$f":"IFERROR(INDEX(tablDogađaji[],SMALL(IF(Datumi=U$6,ROW(Datumi)),ROW(3:3))-PočetakRetkaTablice,4),\"\")","v":""}]
[null,null,{"$f":"IFERROR(INDEX(tablDogađaji[],SMALL(IF(Datumi=C$6,ROW(Datumi)),ROW(4:4))-PočetakRetkaTablice,4),\"\")","v":""},null,null,{"$f":"IFERROR(INDEX(tablDogađaji[],SMALL(IF(Datumi=F$6,ROW(Datumi)),ROW(4:4))-PočetakRetkaTablice,4),\"\")","v":""},null,null,{"$f":"IFERROR(INDEX(tablDogađaji[],SMALL(IF(Datumi=I$6,ROW(Datumi)),ROW(4:4))-PočetakRetkaTablice,4),\"\")","v":""},null,null,{"$f":"IFERROR(INDEX(tablDogađaji[],SMALL(IF(Datumi=L$6,ROW(Datumi)),ROW(4:4))-PočetakRetkaTablice,4),\"\")","v":""},null,null,{"$f":"IFERROR(INDEX(tablDogađaji[],SMALL(IF(Datumi=O$6,ROW(Datumi)),ROW(4:4))-PočetakRetkaTablice,4),\"\")","v":""},null,null,{"$f":"IFERROR(INDEX(tablDogađaji[],SMALL(IF(Datumi=R$6,ROW(Datumi)),ROW(4:4))-PočetakRetkaTablice,4),\"\")","v":""},null,null,{"$f":"IFERROR(INDEX(tablDogađaji[],SMALL(IF(Datumi=U$6,ROW(Datumi)),ROW(4:4))-PočetakRetkaTablice,4),\"\")","v":""}]
[null,null,{"$f":"U6+1","v":"2016-07-04"},null,null,{"$f":"C11+1","v":"2016-07-05"},null,null,{"$f":"F11+1","v":"2016-07-06"},null,null,{"$f":"I11+1","v":"2016-07-07"},null,null,{"$f":"L11+1","v":"2016-07-08"},null,null,{"$f":"O11+1","v":"2016-07-09"},null,null,{"$f":"R11+1","v":"2016-07-10"}]
[null,null,{"$f":"IFERROR(INDEX(tablDogađaji[],SMALL(IF(Datumi=C$11,ROW(Datumi)),ROW(1:1))-PočetakRetkaTablice,4),\"\")","v":""},null,null,{"$f":"IFERROR(INDEX(tablDogađaji[],SMALL(IF(Datumi=F$11,ROW(Datumi)),ROW(1:1))-PočetakRetkaTablice,4),\"\")","v":""},null,null,{"$f":"IFERROR(INDEX(tablDogađaji[],SMALL(IF(Datumi=I$11,ROW(Datumi)),ROW(1:1))-PočetakRetkaTablice,4),\"\")","v":""},null,null,{"$f":"IFERROR(INDEX(tablDogađaji[],SMALL(IF(Datumi=L$11,ROW(Datumi)),ROW(1:1))-PočetakRetkaTablice,4),\"\")","v":""},null,null,{"$f":"IFERROR(INDEX(tablDogađaji[],SMALL(IF(Datumi=O$11,ROW(Datumi)),ROW(1:1))-PočetakRetkaTablice,4),\"\")","v":"Gradsko vijeće"},null,null,{"$f":"IFERROR(INDEX(tablDogađaji[],SMALL(IF(Datumi=R$11,ROW(Datumi)),ROW(1:1))-PočetakRetkaTablice,4),\"\")","v":""},null,null,{"$f":"IFERROR(INDEX(tablDogađaji[],SMALL(IF(Datumi=U$11,ROW(Datumi)),ROW(1:1))-PočetakRetkaTablice,4),\"\")","v":""}]
[null,null,{"$f":"IFERROR(INDEX(tablDogađaji[],SMALL(IF(Datumi=C$11,ROW(Datumi)),ROW(2:2))-PočetakRetkaTablice,4),\"\")","v":""},null,null,{"$f":"IFERROR(INDEX(tablDogađaji[],SMALL(IF(Datumi=F$11,ROW(Datumi)),ROW(2:2))-PočetakRetkaTablice,4),\"\")","v":""},null,null,{"$f":"IFERROR(INDEX(tablDogađaji[],SMALL(IF(Datumi=I$11,ROW(Datumi)),ROW(2:2))-PočetakRetkaTablice,4),\"\")","v":""},null,null,{"$f":"IFERROR(INDEX(tablDogađaji[],SMALL(IF(Datumi=L$11,ROW(Datumi)),ROW(2:2))-PočetakRetkaTablice,4),\"\")","v":""},null,null,{"$f":"IFERROR(INDEX(tablDogađaji[],SMALL(IF(Datumi=O$11,ROW(Datumi)),ROW(2:2))-PočetakRetkaTablice,4),\"\")","v":""},null,null,{"$f":"IFERROR(INDEX(tablDogađaji[],SMALL(IF(Datumi=R$11,ROW(Datumi)),ROW(2:2))-PočetakRetkaTablice,4),\"\")","v":""},null,null,{"$f":"IFERROR(INDEX(tablDogađaji[],SMALL(IF(Datumi=U$11,ROW(Datumi)),ROW(2:2))-PočetakRetkaTablice,4),\"\")","v":""}]
[null,null,{"$f":"IFERROR(INDEX(tablDogađaji[],SMALL(IF(Datumi=C$11,ROW(Datumi)),ROW(3:3))-PočetakRetkaTablice,4),\"\")","v":""},null,null,{"$f":"IFERROR(INDEX(tablDogađaji[],SMALL(IF(Datumi=F$11,ROW(Datumi)),ROW(3:3))-PočetakRetkaTablice,4),\"\")","v":""},null,null,{"$f":"IFERROR(INDEX(tablDogađaji[],SMALL(IF(Datumi=I$11,ROW(Datumi)),ROW(3:3))-PočetakRetkaTablice,4),\"\")","v":""},null,null,{"$f":"IFERROR(INDEX(tablDogađaji[],SMALL(IF(Datumi=L$11,ROW(Datumi)),ROW(3:3))-PočetakRetkaTablice,4),\"\")","v":""},null,null,{"$f":"IFERROR(INDEX(tablDogađaji[],SMALL(IF(Datumi=O$11,ROW(Datumi)),ROW(3:3))-PočetakRetkaTablice,4),\"\")","v":""},null,null,{"$f":"IFERROR(INDEX(tablDogađaji[],SMALL(IF(Datumi=R$11,ROW(Datumi)),ROW(3:3))-PočetakRetkaTablice,4),\"\")","v":""},null,null,{"$f":"IFERROR(INDEX(tablDogađaji[],SMALL(IF(Datumi=U$11,ROW(Datumi)),ROW(3:3))-PočetakRetkaTablice,4),\"\")","v":""}]
[null,null,{"$f":"IFERROR(INDEX(tablDogađaji[],SMALL(IF(Datumi=C$11,ROW(Datumi)),ROW(4:4))-PočetakRetkaTablice,4),\"\")","v":""},null,null,{"$f":"IFERROR(INDEX(tablDogađaji[],SMALL(IF(Datumi=F$11,ROW(Datumi)),ROW(4:4))-PočetakRetkaTablice,4),\"\")","v":""},null,null,{"$f":"IFERROR(INDEX(tablDogađaji[],SMALL(IF(Datumi=I$11,ROW(Datumi)),ROW(4:4))-PočetakRetkaTablice,4),\"\")","v":""},null,null,{"$f":"IFERROR(INDEX(tablDogađaji[],SMALL(IF(Datumi=L$11,ROW(Datumi)),ROW(4:4))-PočetakRetkaTablice,4),\"\")","v":""},null,null,{"$f":"IFERROR(INDEX(tablDogađaji[],SMALL(IF(Datumi=O$11,ROW(Datumi)),ROW(4:4))-PočetakRetkaTablice,4),\"\")","v":""},null,null,{"$f":"IFERROR(INDEX(tablDogađaji[],SMALL(IF(Datumi=R$11,ROW(Datumi)),ROW(4:4))-PočetakRetkaTablice,4),\"\")","v":""},null,null,{"$f":"IFERROR(INDEX(tablDogađaji[],SMALL(IF(Datumi=U$11,ROW(Datumi)),ROW(4:4))-PočetakRetkaTablice,4),\"\")","v":""}]
[null,null,{"$f":"U11+1","v":"2016-07-11"},null,null,{"$f":"C16+1","v":"2016-07-12"},null,null,{"$f":"F16+1","v":"2016-07-13"},null,null,{"$f":"I16+1","v":"2016-07-14"},null,null,{"$f":"L16+1","v":"2016-07-15"},null,null,{"$f":"O16+1","v":"2016-07-16"},null,null,{"$f":"R16+1","v":"2016-07-17"}]
[null,null,{"$f":"IFERROR(INDEX(tablDogađaji[],SMALL(IF(Datumi=C$16,ROW(Datumi)),ROW(1:1))-PočetakRetkaTablice,4),\"\")","v":"Gospodarska komora Ručak"},null,null,{"$f":"IFERROR(INDEX(tablDogađaji[],SMALL(IF(Datumi=F$16,ROW(Datumi)),ROW(1:1))-PočetakRetkaTablice,4),\"\")","v":"Izložba antikviteta"},null,null,{"$f":"IFERROR(INDEX(tablDogađaji[],SMALL(IF(Datumi=I$16,ROW(Datumi)),ROW(1:1))-PočetakRetkaTablice,4),\"\")","v":""},null,null,{"$f":"IFERROR(INDEX(tablDogađaji[],SMALL(IF(Datumi=L$16,ROW(Datumi)),ROW(1:1))-PočetakRetkaTablice,4),\"\")","v":"Radionica u zajednici"},null,null,{"$f":"IFERROR(INDEX(tablDogađaji[],SMALL(IF(Datumi=O$16,ROW(Datumi)),ROW(1:1))-PočetakRetkaTablice,4),\"\")","v":"Gradsko vijeće"},null,null,{"$f":"IFERROR(INDEX(tablDogađaji[],SMALL(IF(Datumi=R$16,ROW(Datumi)),ROW(1:1))-PočetakRetkaTablice,4),\"\")","v":""},null,null,{"$f":"IFERROR(INDEX(tablDogađaji[],SMALL(IF(Datumi=U$16,ROW(Datumi)),ROW(1:1))-PočetakRetkaTablice,4),\"\")","v":""}]
[null,null,{"$f":"IFERROR(INDEX(tablDogađaji[],SMALL(IF(Datumi=C$16,ROW(Datumi)),ROW(2:2))-PočetakRetkaTablice,4),\"\")","v":""},null,null,{"$f":"IFERROR(INDEX(tablDogađaji[],SMALL(IF(Datumi=F$16,ROW(Datumi)),ROW(2:2))-PočetakRetkaTablice,4),\"\")","v":""},null,null,{"$f":"IFERROR(INDEX(tablDogađaji[],SMALL(IF(Datumi=I$16,ROW(Datumi)),ROW(2:2))-PočetakRetkaTablice,4),\"\")","v":""},null,null,{"$f":"IFERROR(INDEX(tablDogađaji[],SMALL(IF(Datumi=L$16,ROW(Datumi)),ROW(2:2))-PočetakRetkaTablice,4),\"\")","v":""},null,null,{"$f":"IFERROR(INDEX(tablDogađaji[],SMALL(IF(Datumi=O$16,ROW(Datumi)),ROW(2:2))-PočetakRetkaTablice,4),\"\")","v":""},null,null,{"$f":"IFERROR(INDEX(tablDogađaji[],SMALL(IF(Datumi=R$16,ROW(Datumi)),ROW(2:2))-PočetakRetkaTablice,4),\"\")","v":""},null,null,{"$f":"IFERROR(INDEX(tablDogađaji[],SMALL(IF(Datumi=U$16,ROW(Datumi)),ROW(2:2))-PočetakRetkaTablice,4),\"\")","v":""}]
[null,null,{"$f":"IFERROR(INDEX(tablDogađaji[],SMALL(IF(Datumi=C$16,ROW(Datumi)),ROW(3:3))-PočetakRetkaTablice,4),\"\")","v":""},null,null,{"$f":"IFERROR(INDEX(tablDogađaji[],SMALL(IF(Datumi=F$16,ROW(Datumi)),ROW(3:3))-PočetakRetkaTablice,4),\"\")","v":""},null,null,{"$f":"IFERROR(INDEX(tablDogađaji[],SMALL(IF(Datumi=I$16,ROW(Datumi)),ROW(3:3))-PočetakRetkaTablice,4),\"\")","v":""},null,null,{"$f":"IFERROR(INDEX(tablDogađaji[],SMALL(IF(Datumi=L$16,ROW(Datumi)),ROW(3:3))-PočetakRetkaTablice,4),\"\")","v":""},null,null,{"$f":"IFERROR(INDEX(tablDogađaji[],SMALL(IF(Datumi=O$16,ROW(Datumi)),ROW(3:3))-PočetakRetkaTablice,4),\"\")","v":""},null,null,{"$f":"IFERROR(INDEX(tablDogađaji[],SMALL(IF(Datumi=R$16,ROW(Datumi)),ROW(3:3))-PočetakRetkaTablice,4),\"\")","v":""},null,null,{"$f":"IFERROR(INDEX(tablDogađaji[],SMALL(IF(Datumi=U$16,ROW(Datumi)),ROW(3:3))-PočetakRetkaTablice,4),\"\")","v":""}]
[null,null,{"$f":"IFERROR(INDEX(tablDogađaji[],SMALL(IF(Datumi=C$16,ROW(Datumi)),ROW(4:4))-PočetakRetkaTablice,4),\"\")","v":""},null,null,{"$f":"IFERROR(INDEX(tablDogađaji[],SMALL(IF(Datumi=F$16,ROW(Datumi)),ROW(4:4))-PočetakRetkaTablice,4),\"\")","v":""},null,null,{"$f":"IFERROR(INDEX(tablDogađaji[],SMALL(IF(Datumi=I$16,ROW(Datumi)),ROW(4:4))-PočetakRetkaTablice,4),\"\")","v":""},null,null,{"$f":"IFERROR(INDEX(tablDogađaji[],SMALL(IF(Datumi=L$16,ROW(Datumi)),ROW(4:4))-PočetakRetkaTablice,4),\"\")","v":""},null,null,{"$f":"IFERROR(INDEX(tablDogađaji[],SMALL(IF(Datumi=O$16,ROW(Datumi)),ROW(4:4))-PočetakRetkaTablice,4),\"\")","v":""},null,null,{"$f":"IFERROR(INDEX(tablDogađaji[],SMALL(IF(Datumi=R$16,ROW(Datumi)),ROW(4:4))-PočetakRetkaTablice,4),\"\")","v":""},null,null,{"$f":"IFERROR(INDEX(tablDogađaji[],SMALL(IF(Datumi=U$16,ROW(Datumi)),ROW(4:4))-PočetakRetkaTablice,4),\"\")","v":""}]
[null,null,{"$f":"U16+1","v":"2016-07-18"},null,null,{"$f":"C21+1","v":"2016-07-19"},null,null,{"$f":"F21+1","v":"2016-07-20"},null,null,{"$f":"I21+1","v":"2016-07-21"},null,null,{"$f":"L21+1","v":"2016-07-22"},null,null,{"$f":"O21+1","v":"2016-07-23"},null,null,{"$f":"R21+1","v":"2016-07-24"}]
[null,null,{"$f":"IFERROR(INDEX(tablDogađaji[],SMALL(IF(Datumi=C$21,ROW(Datumi)),ROW(1:1))-PočetakRetkaTablice,4),\"\")","v":""},null,null,{"$f":"IFERROR(INDEX(tablDogađaji[],SMALL(IF(Datumi=F$21,ROW(Datumi)),ROW(1:1))-PočetakRetkaTablice,4),\"\")","v":"Radionica o strateškom planiranju"},null,null,{"$f":"IFERROR(INDEX(tablDogađaji[],SMALL(IF(Datumi=I$21,ROW(Datumi)),ROW(1:1))-PočetakRetkaTablice,4),\"\")","v":"Čišćenje partka"},null,null,{"$f":"IFERROR(INDEX(tablDogađaji[],SMALL(IF(Datumi=L$21,ROW(Datumi)),ROW(1:1))-PočetakRetkaTablice,4),\"\")","v":""},null,null,{"$f":"IFERROR(INDEX(tablDogađaji[],SMALL(IF(Datumi=O$21,ROW(Datumi)),ROW(1:1))-PočetakRetkaTablice,4),\"\")","v":"Gradsko vijeće"},null,null,{"$f":"IFERROR(INDEX(tablDogađaji[],SMALL(IF(Datumi=R$21,ROW(Datumi)),ROW(1:1))-PočetakRetkaTablice,4),\"\")","v":""},null,null,{"$f":"IFERROR(INDEX(tablDogađaji[],SMALL(IF(Datumi=U$21,ROW(Datumi)),ROW(1:1))-PočetakRetkaTablice,4),\"\")","v":""}]
[null,null,{"$f":"IFERROR(INDEX(tablDogađaji[],SMALL(IF(Datumi=C$21,ROW(Datumi)),ROW(2:2))-PočetakRetkaTablice,4),\"\")","v":""},null,null,{"$f":"IFERROR(INDEX(tablDogađaji[],SMALL(IF(Datumi=F$21,ROW(Datumi)),ROW(2:2))-PočetakRetkaTablice,4),\"\")","v":""},null,null,{"$f":"IFERROR(INDEX(tablDogađaji[],SMALL(IF(Datumi=I$21,ROW(Datumi)),ROW(2:2))-PočetakRetkaTablice,4),\"\")","v":""},null,null,{"$f":"IFERROR(INDEX(tablDogađaji[],SMALL(IF(Datumi=L$21,ROW(Datumi)),ROW(2:2))-PočetakRetkaTablice,4),\"\")","v":""},null,null,{"$f":"IFERROR(INDEX(tablDogađaji[],SMALL(IF(Datumi=O$21,ROW(Datumi)),ROW(2:2))-PočetakRetkaTablice,4),\"\")","v":""},null,null,{"$f":"IFERROR(INDEX(tablDogađaji[],SMALL(IF(Datumi=R$21,ROW(Datumi)),ROW(2:2))-PočetakRetkaTablice,4),\"\")","v":""},null,null,{"$f":"IFERROR(INDEX(tablDogađaji[],SMALL(IF(Datumi=U$21,ROW(Datumi)),ROW(2:2))-PočetakRetkaTablice,4),\"\")","v":""}]
[null,null,{"$f":"IFERROR(INDEX(tablDogađaji[],SMALL(IF(Datumi=C$21,ROW(Datumi)),ROW(3:3))-PočetakRetkaTablice,4),\"\")","v":""},null,null,{"$f":"IFERROR(INDEX(tablDogađaji[],SMALL(IF(Datumi=F$21,ROW(Datumi)),ROW(3:3))-PočetakRetkaTablice,4),\"\")","v":""},null,null,{"$f":"IFERROR(INDEX(tablDogađaji[],SMALL(IF(Datumi=I$21,ROW(Datumi)),ROW(3:3))-PočetakRetkaTablice,4),\"\")","v":""},null,null,{"$f":"IFERROR(INDEX(tablDogađaji[],SMALL(IF(Datumi=L$21,ROW(Datumi)),ROW(3:3))-PočetakRetkaTablice,4),\"\")","v":""},null,null,{"$f":"IFERROR(INDEX(tablDogađaji[],SMALL(IF(Datumi=O$21,ROW(Datumi)),ROW(3:3))-PočetakRetkaTablice,4),\"\")","v":""},null,null,{"$f":"IFERROR(INDEX(tablDogađaji[],SMALL(IF(Datumi=R$21,ROW(Datumi)),ROW(3:3))-PočetakRetkaTablice,4),\"\")","v":""},null,null,{"$f":"IFERROR(INDEX(tablDogađaji[],SMALL(IF(Datumi=U$21,ROW(Datumi)),ROW(3:3))-PočetakRetkaTablice,4),\"\")","v":""}]
[null,null,{"$f":"IFERROR(INDEX(tablDogađaji[],SMALL(IF(Datumi=C$21,ROW(Datumi)),ROW(4:4))-PočetakRetkaTablice,4),\"\")","v":""},null,null,{"$f":"IFERROR(INDEX(tablDogađaji[],SMALL(IF(Datumi=F$21,ROW(Datumi)),ROW(4:4))-PočetakRetkaTablice,4),\"\")","v":""},null,null,{"$f":"IFERROR(INDEX(tablDogađaji[],SMALL(IF(Datumi=I$21,ROW(Datumi)),ROW(4:4))-PočetakRetkaTablice,4),\"\")","v":""},null,null,{"$f":"IFERROR(INDEX(tablDogađaji[],SMALL(IF(Datumi=L$21,ROW(Datumi)),ROW(4:4))-PočetakRetkaTablice,4),\"\")","v":""},null,null,{"$f":"IFERROR(INDEX(tablDogađaji[],SMALL(IF(Datumi=O$21,ROW(Datumi)),ROW(4:4))-PočetakRetkaTablice,4),\"\")","v":""},null,null,{"$f":"IFERROR(INDEX(tablDogađaji[],SMALL(IF(Datumi=R$21,ROW(Datumi)),ROW(4:4))-PočetakRetkaTablice,4),\"\")","v":""},null,null,{"$f":"IFERROR(INDEX(tablDogađaji[],SMALL(IF(Datumi=U$21,ROW(Datumi)),ROW(4:4))-PočetakRetkaTablice,4),\"\")","v":""}]
[null,null,{"$f":"U21+1","v":"2016-07-25"},null,null,{"$f":"C26+1","v":"2016-07-26"},null,null,{"$f":"F26+1","v":"2016-07-27"},null,null,{"$f":"I26+1","v":"2016-07-28"},null,null,{"$f":"L26+1","v":"2016-07-29"},null,null,{"$f":"O26+1","v":"2016-07-30"},null,null,{"$f":"R26+1","v":"2016-07-31"}]
[null,null,{"$f":"IFERROR(INDEX(tablDogađaji[],SMALL(IF(Datumi=C$26,ROW(Datumi)),ROW(1:1))-PočetakRetkaTablice,4),\"\")","v":""},null,null,{"$f":"IFERROR(INDEX(tablDogađaji[],SMALL(IF(Datumi=F$26,ROW(Datumi)),ROW(1:1))-PočetakRetkaTablice,4),\"\")","v":"Šetnja centrom"},null,null,{"$f":"IFERROR(INDEX(tablDogađaji[],SMALL(IF(Datumi=I$26,ROW(Datumi)),ROW(1:1))-PočetakRetkaTablice,4),\"\")","v":""},null,null,{"$f":"IFERROR(INDEX(tablDogađaji[],SMALL(IF(Datumi=L$26,ROW(Datumi)),ROW(1:1))-PočetakRetkaTablice,4),\"\")","v":""},null,null,{"$f":"IFERROR(INDEX(tablDogađaji[],SMALL(IF(Datumi=O$26,ROW(Datumi)),ROW(1:1))-PočetakRetkaTablice,4),\"\")","v":"Gradsko vijeće"},null,null,{"$f":"IFERROR(INDEX(tablDogađaji[],SMALL(IF(Datumi=R$26,ROW(Datumi)),ROW(1:1))-PočetakRetkaTablice,4),\"\")","v":""},null,null,{"$f":"IFERROR(INDEX(tablDogađaji[],SMALL(IF(Datumi=U$26,ROW(Datumi)),ROW(1:1))-PočetakRetkaTablice,4),\"\")","v":""}]
[null,null,{"$f":"IFERROR(INDEX(tablDogađaji[],SMALL(IF(Datumi=C$26,ROW(Datumi)),ROW(2:2))-PočetakRetkaTablice,4),\"\")","v":""},null,null,{"$f":"IFERROR(INDEX(tablDogađaji[],SMALL(IF(Datumi=F$26,ROW(Datumi)),ROW(2:2))-PočetakRetkaTablice,4),\"\")","v":"Obilazak gostionica"},null,null,{"$f":"IFERROR(INDEX(tablDogađaji[],SMALL(IF(Datumi=I$26,ROW(Datumi)),ROW(2:2))-PočetakRetkaTablice,4),\"\")","v":""},null,null,{"$f":"IFERROR(INDEX(tablDogađaji[],SMALL(IF(Datumi=L$26,ROW(Datumi)),ROW(2:2))-PočetakRetkaTablice,4),\"\")","v":""},null,null,{"$f":"IFERROR(INDEX(tablDogađaji[],SMALL(IF(Datumi=O$26,ROW(Datumi)),ROW(2:2))-PočetakRetkaTablice,4),\"\")","v":""},null,null,{"$f":"IFERROR(INDEX(tablDogađaji[],SMALL(IF(Datumi=R$26,ROW(Datumi)),ROW(2:2))-PočetakRetkaTablice,4),\"\")","v":""},null,null,{"$f":"IFERROR(INDEX(tablDogađaji[],SMALL(IF(Datumi=U$26,ROW(Datumi)),ROW(2:2))-PočetakRetkaTablice,4),\"\")","v":""}]
[null,null,{"$f":"IFERROR(INDEX(tablDogađaji[],SMALL(IF(Datumi=C$26,ROW(Datumi)),ROW(3:3))-PočetakRetkaTablice,4),\"\")","v":""},null,null,{"$f":"IFERROR(INDEX(tablDogađaji[],SMALL(IF(Datumi=F$26,ROW(Datumi)),ROW(3:3))-PočetakRetkaTablice,4),\"\")","v":""},null,null,{"$f":"IFERROR(INDEX(tablDogađaji[],SMALL(IF(Datumi=I$26,ROW(Datumi)),ROW(3:3))-PočetakRetkaTablice,4),\"\")","v":""},null,null,{"$f":"IFERROR(INDEX(tablDogađaji[],SMALL(IF(Datumi=L$26,ROW(Datumi)),ROW(3:3))-PočetakRetkaTablice,4),\"\")","v":""},null,null,{"$f":"IFERROR(INDEX(tablDogađaji[],SMALL(IF(Datumi=O$26,ROW(Datumi)),ROW(3:3))-PočetakRetkaTablice,4),\"\")","v":""},null,null,{"$f":"IFERROR(INDEX(tablDogađaji[],SMALL(IF(Datumi=R$26,ROW(Datumi)),ROW(3:3))-PočetakRetkaTablice,4),\"\")","v":""},null,null,{"$f":"IFERROR(INDEX(tablDogađaji[],SMALL(IF(Datumi=U$26,ROW(Datumi)),ROW(3:3))-PočetakRetkaTablice,4),\"\")","v":""}]
[null,null,{"$f":"IFERROR(INDEX(tablDogađaji[],SMALL(IF(Datumi=C$26,ROW(Datumi)),ROW(4:4))-PočetakRetkaTablice,4),\"\")","v":""},null,null,{"$f":"IFERROR(INDEX(tablDogađaji[],SMALL(IF(Datumi=F$26,ROW(Datumi)),ROW(4:4))-PočetakRetkaTablice,4),\"\")","v":""},null,null,{"$f":"IFERROR(INDEX(tablDogađaji[],SMALL(IF(Datumi=I$26,ROW(Datumi)),ROW(4:4))-PočetakRetkaTablice,4),\"\")","v":""},null,null,{"$f":"IFERROR(INDEX(tablDogađaji[],SMALL(IF(Datumi=L$26,ROW(Datumi)),ROW(4:4))-PočetakRetkaTablice,4),\"\")","v":""},null,null,{"$f":"IFERROR(INDEX(tablDogađaji[],SMALL(IF(Datumi=O$26,ROW(Datumi)),ROW(4:4))-PočetakRetkaTablice,4),\"\")","v":""},null,null,{"$f":"IFERROR(INDEX(tablDogađaji[],SMALL(IF(Datumi=R$26,ROW(Datumi)),ROW(4:4))-PočetakRetkaTablice,4),\"\")","v":""},null,null,{"$f":"IFERROR(INDEX(tablDogađaji[],SMALL(IF(Datumi=U$26,ROW(Datumi)),ROW(4:4))-PočetakRetkaTablice,4),\"\")","v":""}]
[null,null,{"$f":"U26+1","v":"2016-08-01"},null,null,{"$f":"C31+1","v":"2016-08-02"},null,null,"NAPOMENE:"]
[null,null,{"$f":"IFERROR(INDEX(tablDogađaji[],SMALL(IF(Datumi=C$31,ROW(Datumi)),ROW(1:1))-PočetakRetkaTablice,4),\"\")","v":""},null,null,{"$f":"IFERROR(INDEX(tablDogađaji[],SMALL(IF(Datumi=F$31,ROW(Datumi)),ROW(1:1))-PočetakRetkaTablice,4),\"\")","v":""}]
[null,null,{"$f":"IFERROR(INDEX(tablDogađaji[],SMALL(IF(Datumi=C$31,ROW(Datumi)),ROW(2:2))-PočetakRetkaTablice,4),\"\")","v":""},null,null,{"$f":"IFERROR(INDEX(tablDogađaji[],SMALL(IF(Datumi=F$31,ROW(Datumi)),ROW(2:2))-PočetakRetkaTablice,4),\"\")","v":""}]
[null,null,{"$f":"IFERROR(INDEX(tablDogađaji[],SMALL(IF(Datumi=C$31,ROW(Datumi)),ROW(3:3))-PočetakRetkaTablice,4),\"\")","v":""},null,null,{"$f":"IFERROR(INDEX(tablDogađaji[],SMALL(IF(Datumi=F$31,ROW(Datumi)),ROW(3:3))-PočetakRetkaTablice,4),\"\")","v":""}]
[null,null,{"$f":"IFERROR(INDEX(tablDogađaji[],SMALL(IF(Datumi=C$31,ROW(Datumi)),ROW(4:4))-PočetakRetkaTablice,4),\"\")","v":""},null,null,{"$f":"IFERROR(INDEX(tablDogađaji[],SMALL(IF(Datumi=F$31,ROW(Datumi)),ROW(4:4))-PočetakRetkaTablice,4),\"\")","v":""}]

{"sheet":"VERZIJA ISPIS","index":2,"n_rows":35,"n_cols":21,"rows_kept":35,"merged":[[1,5,1,11],[30,8,34,20]]}
[]
[null,null,{"$f":"PrikazGodine","v":2016},null,null,{"$f":"PrikazMjeseca","v":"SRPANJ"},0,0,0,0,0,0]
[]
[null,null,"PON",null,null,"UTO",null,null,"SRI",null,null,"ČET",null,null,"PET",null,null,"SUB",null,null,"NED"]
[]
[null,null,{"$f":"KALENDAR!C6","v":"2016-06-27"},{"$f":"KALENDAR!D6","v":0},{"$f":"KALENDAR!E6","v":0},{"$f":"KALENDAR!F6","v":"2016-06-28"},{"$f":"KALENDAR!G6","v":0},{"$f":"KALENDAR!H6","v":0},{"$f":"KALENDAR!I6","v":"2016-06-29"},{"$f":"KALENDAR!J6","v":0},{"$f":"KALENDAR!K6","v":0},{"$f":"KALENDAR!L6","v":"2016-06-30"},{"$f":"KALENDAR!M6","v":0},{"$f":"KALENDAR!N6","v":0},{"$f":"KALENDAR!O6","v":"2016-07-01"},{"$f":"KALENDAR!P6","v":0},{"$f":"KALENDAR!Q6","v":0},{"$f":"KALENDAR!R6","v":"2016-07-02"},{"$f":"KALENDAR!S6","v":0},{"$f":"KALENDAR!T6","v":0},{"$f":"KALENDAR!U6","v":"2016-07-03"}]
[null,null,{"$f":"KALENDAR!C7","v":""},{"$f":"KALENDAR!D7","v":0},{"$f":"KALENDAR!E7","v":0},{"$f":"KALENDAR!F7","v":""},{"$f":"KALENDAR!G7","v":0},{"$f":"KALENDAR!H7","v":0},{"$f":"KALENDAR!I7","v":""},{"$f":"KALENDAR!J7","v":0},{"$f":"KALENDAR!K7","v":0},{"$f":"KALENDAR!L7","v":""},{"$f":"KALENDAR!M7","v":0},{"$f":"KALENDAR!N7","v":0},{"$f":"KALENDAR!O7","v":"Općinski vrt"},{"$f":"KALENDAR!P7","v":0},{"$f":"KALENDAR!Q7","v":0},{"$f":"KALENDAR!R7","v":"Općinski vrt"},{"$f":"KALENDAR!S7","v":0},{"$f":"KALENDAR!T7","v":0},{"$f":"KALENDAR!U7","v":"Noćno kino na otvorenom"}]
[null,null,{"$f":"KALENDAR!C8","v":""},{"$f":"KALENDAR!D8","v":"00:00:00"},{"$f":"KALENDAR!E8","v":"00:00:00"},{"$f":"KALENDAR!F8","v":""},{"$f":"KALENDAR!G8","v":"00:00:00"},{"$f":"KALENDAR!H8","v":"00:00:00"},{"$f":"KALENDAR!I8","v":""},{"$f":"KALENDAR!J8","v":"00:00:00"},{"$f":"KALENDAR!K8","v":"00:00:00"},{"$f":"KALENDAR!L8","v":""},{"$f":"KALENDAR!M8","v":"00:00:00"},{"$f":"KALENDAR!N8","v":"00:00:00"},{"$f":"KALENDAR!O8","v":"Gradsko vijeće"},{"$f":"KALENDAR!P8","v":"00:00:00"},{"$f":"KALENDAR!Q8","v":"00:00:00"},{"$f":"KALENDAR!R8","v":""},{"$f":"KALENDAR!S8","v":"00:00:00"},{"$f":"KALENDAR!T8","v":"00:00:00"},{"$f":"KALENDAR!U8","v":""}]
[null,null,{"$f":"KALENDAR!C9","v":""},{"$f":"KALENDAR!D9","v":0},{"$f":"KALENDAR!E9","v":0},{"$f":"KALENDAR!F9","v":""},{"$f":"KALENDAR!G9","v":0},{"$f":"KALENDAR!H9","v":0},{"$f":"KALENDAR!I9","v":""},{"$f":"KALENDAR!J9","v":0},{"$f":"KALENDAR!K9","v":0},{"$f":"KALENDAR!L9","v":""},{"$f":"KALENDAR!M9","v":0},{"$f":"KALENDAR!N9","v":0},{"$f":"KALENDAR!O9","v":""},{"$f":"KALENDAR!P9","v":0},{"$f":"KALENDAR!Q9","v":0},{"$f":"KALENDAR!R9","v":""},{"$f":"KALENDAR!S9","v":0},{"$f":"KALENDAR!T9","v":0},{"$f":"KALENDAR!U9","v":""}]
[null,null,{"$f":"KALENDAR!C10","v":""},{"$f":"KALENDAR!D10","v":0},{"$f":"KALENDAR!E10","v":0},{"$f":"KALENDAR!F10","v":""},{"$f":"KALENDAR!G10","v":0},{"$f":"KALENDAR!H10","v":0},{"$f":"KALENDAR!I10","v":""},{"$f":"KALENDAR!J10","v":0},{"$f":"KALENDAR!K10","v":0},{"$f":"KALENDAR!L10","v":""},{"$f":"KALENDAR!M10","v":0},{"$f":"KALENDAR!N10","v":0},{"$f":"KALENDAR!O10","v":""},{"$f":"KALENDAR!P10","v":0},{"$f":"KALENDAR!Q10","v":0},{"$f":"KALENDAR!R10","v":""},{"$f":"KALENDAR!S10","v":0},{"$f":"KALENDAR!T10","v":0},{"$f":"KALENDAR!U10","v":""}]
[null,null,{"$f":"KALENDAR!C11","v":"2016-07-04"},{"$f":"KALENDAR!D11","v":0},{"$f":"KALENDAR!E11","v":0},{"$f":"KALENDAR!F11","v":"2016-07-05"},{"$f":"KALENDAR!G11","v":0},{"$f":"KALENDAR!H11","v":0},{"$f":"KALENDAR!I11","v":"2016-07-06"},{"$f":"KALENDAR!J11","v":0},{"$f":"KALENDAR!K11","v":0},{"$f":"KALENDAR!L11","v":"2016-07-07"},{"$f":"KALENDAR!M11","v":0},{"$f":"KALENDAR!N11","v":0},{"$f":"KALENDAR!O11","v":"2016-07-08"},{"$f":"KALENDAR!P11","v":0},{"$f":"KALENDAR!Q11","v":0},{"$f":"KALENDAR!R11","v":"2016-07-09"},{"$f":"KALENDAR!S11","v":0},{"$f":"KALENDAR!T11","v":0},{"$f":"KALENDAR!U11","v":"2016-07-10"}]
[null,null,{"$f":"KALENDAR!C12","v":""},{"$f":"KALENDAR!D12","v":0},{"$f":"KALENDAR!E12","v":0},{"$f":"KALENDAR!F12","v":""},{"$f":"KALENDAR!G12","v":0},{"$f":"KALENDAR!H12","v":0},{"$f":"KALENDAR!I12","v":""},{"$f":"KALENDAR!J12","v":0},{"$f":"KALENDAR!K12","v":0},{"$f":"KALENDAR!L12","v":""},{"$f":"KALENDAR!M12","v":0},{"$f":"KALENDAR!N12","v":0},{"$f":"KALENDAR!O12","v":"Gradsko vijeće"},{"$f":"KALENDAR!P12","v":0},{"$f":"KALENDAR!Q12","v":0},{"$f":"KALENDAR!R12","v":""},{"$f":"KALENDAR!S12","v":0},{"$f":"KALENDAR!T12","v":0},{"$f":"KALENDAR!U12","v":""}]
[null,null,{"$f":"KALENDAR!C13","v":""},{"$f":"KALENDAR!D13","v":0},{"$f":"KALENDAR!E13","v":0},{"$f":"KALENDAR!F13","v":""},{"$f":"KALENDAR!G13","v":0},{"$f":"KALENDAR!H13","v":0},{"$f":"KALENDAR!I13","v":""},{"$f":"KALENDAR!J13","v":0},{"$f":"KALENDAR!K13","v":0},{"$f":"KALENDAR!L13","v":""},{"$f":"KALENDAR!M13","v":0},{"$f":"KALENDAR!N13","v":0},{"$f":"KALENDAR!O13","v":""},{"$f":"KALENDAR!P13","v":0},{"$f":"KALENDAR!Q13","v":0},{"$f":"KALENDAR!R13","v":""},{"$f":"KALENDAR!S13","v":0},{"$f":"KALENDAR!T13","v":0},{"$f":"KALENDAR!U13","v":""}]
[null,null,{"$f":"KALENDAR!C14","v":""},{"$f":"KALENDAR!D14","v":0},{"$f":"KALENDAR!E14","v":0},{"$f":"KALENDAR!F14","v":""},{"$f":"KALENDAR!G14","v":0},{"$f":"KALENDAR!H14","v":0},{"$f":"KALENDAR!I14","v":""},{"$f":"KALENDAR!J14","v":0},{"$f":"KALENDAR!K14","v":0},{"$f":"KALENDAR!L14","v":""},{"$f":"KALENDAR!M14","v":0},{"$f":"KALENDAR!N14","v":0},{"$f":"KALENDAR!O14","v":""},{"$f":"KALENDAR!P14","v":0},{"$f":"KALENDAR!Q14","v":0},{"$f":"KALENDAR!R14","v":""},{"$f":"KALENDAR!S14","v":0},{"$f":"KALENDAR!T14","v":0},{"$f":"KALENDAR!U14","v":""}]
[null,null,{"$f":"KALENDAR!C15","v":""},{"$f":"KALENDAR!D15","v":0},{"$f":"KALENDAR!E15","v":0},{"$f":"KALENDAR!F15","v":""},{"$f":"KALENDAR!G15","v":0},{"$f":"KALENDAR!H15","v":0},{"$f":"KALENDAR!I15","v":""},{"$f":"KALENDAR!J15","v":0},{"$f":"KALENDAR!K15","v":0},{"$f":"KALENDAR!L15","v":""},{"$f":"KALENDAR!M15","v":0},{"$f":"KALENDAR!N15","v":0},{"$f":"KALENDAR!O15","v":""},{"$f":"KALENDAR!P15","v":0},{"$f":"KALENDAR!Q15","v":0},{"$f":"KALENDAR!R15","v":""},{"$f":"KALENDAR!S15","v":0},{"$f":"KALENDAR!T15","v":0},{"$f":"KALENDAR!U15","v":""}]
[null,null,{"$f":"KALENDAR!C16","v":"2016-07-11"},{"$f":"KALENDAR!D16","v":0},{"$f":"KALENDAR!E16","v":0},{"$f":"KALENDAR!F16","v":"2016-07-12"},{"$f":"KALENDAR!G16","v":0},{"$f":"KALENDAR!H16","v":0},{"$f":"KALENDAR!I16","v":"2016-07-13"},{"$f":"KALENDAR!J16","v":0},{"$f":"KALENDAR!K16","v":0},{"$f":"KALENDAR!L16","v":"2016-07-14"},{"$f":"KALENDAR!M16","v":0},{"$f":"KALENDAR!N16","v":0},{"$f":"KALENDAR!O16","v":"2016-07-15"},{"$f":"KALENDAR!P16","v":0},{"$f":"KALENDAR!Q16","v":0},{"$f":"KALENDAR!R16","v":"2016-07-16"},{"$f":"KALENDAR!S16","v":0},{"$f":"KALENDAR!T16","v":0},{"$f":"KALENDAR!U16","v":"2016-07-17"}]
[null,null,{"$f":"KALENDAR!C17","v":"Gospodarska komora Ručak"},{"$f":"KALENDAR!D17","v":0},{"$f":"KALENDAR!E17","v":0},{"$f":"KALENDAR!F17","v":"Izložba antikviteta"},{"$f":"KALENDAR!G17","v":0},{"$f":"KALENDAR!H17","v":0},{"$f":"KALENDAR!I17","v":""},{"$f":"KALENDAR!J17","v":0},{"$f":"KALENDAR!K17","v":0},{"$f":"KALENDAR!L17","v":"Radionica u zajednici"},{"$f":"KALENDAR!M17","v":0},{"$f":"KALENDAR!N17","v":0},{"$f":"KALENDAR!O17","v":"Gradsko vijeće"},{"$f":"KALENDAR!P17","v":0},{"$f":"KALENDAR!Q17","v":0},{"$f":"KALENDAR!R17","v":""},{"$f":"KALENDAR!S17","v":0},{"$f":"KALENDAR!T17","v":0},{"$f":"KALENDAR!U17","v":""}]
[null,null,{"$f":"KALENDAR!C18","v":""},{"$f":"KALENDAR!D18","v":0},{"$f":"KALENDAR!E18","v":0},{"$f":"KALENDAR!F18","v":""},{"$f":"KALENDAR!G18","v":0},{"$f":"KALENDAR!H18","v":0},{"$f":"KALENDAR!I18","v":""},{"$f":"KALENDAR!J18","v":0},{"$f":"KALENDAR!K18","v":0},{"$f":"KALENDAR!L18","v":""},{"$f":"KALENDAR!M18","v":0},{"$f":"KALENDAR!N18","v":0},{"$f":"KALENDAR!O18","v":""},{"$f":"KALENDAR!P18","v":0},{"$f":"KALENDAR!Q18","v":0},{"$f":"KALENDAR!R18","v":""},{"$f":"KALENDAR!S18","v":0},{"$f":"KALENDAR!T18","v":0},{"$f":"KALENDAR!U18","v":""}]
[null,null,{"$f":"KALENDAR!C19","v":""},{"$f":"KALENDAR!D19","v":0},{"$f":"KALENDAR!E19","v":0},{"$f":"KALENDAR!F19","v":""},{"$f":"KALENDAR!G19","v":0},{"$f":"KALENDAR!H19","v":0},{"$f":"KALENDAR!I19","v":""},{"$f":"KALENDAR!J19","v":0},{"$f":"KALENDAR!K19","v":0},{"$f":"KALENDAR!L19","v":""},{"$f":"KALENDAR!M19","v":0},{"$f":"KALENDAR!N19","v":0},{"$f":"KALENDAR!O19","v":""},{"$f":"KALENDAR!P19","v":0},{"$f":"KALENDAR!Q19","v":0},{"$f":"KALENDAR!R19","v":""},{"$f":"KALENDAR!S19","v":0},{"$f":"KALENDAR!T19","v":0},{"$f":"KALENDAR!U19","v":""}]
[null,null,{"$f":"KALENDAR!C20","v":""},{"$f":"KALENDAR!D20","v":0},{"$f":"KALENDAR!E20","v":0},{"$f":"KALENDAR!F20","v":""},{"$f":"KALENDAR!G20","v":0},{"$f":"KALENDAR!H20","v":0},{"$f":"KALENDAR!I20","v":""},{"$f":"KALENDAR!J20","v":0},{"$f":"KALENDAR!K20","v":0},{"$f":"KALENDAR!L20","v":""},{"$f":"KALENDAR!M20","v":0},{"$f":"KALENDAR!N20","v":0},{"$f":"KALENDAR!O20","v":""},{"$f":"KALENDAR!P20","v":0},{"$f":"KALENDAR!Q20","v":0},{"$f":"KALENDAR!R20","v":""},{"$f":"KALENDAR!S20","v":0},{"$f":"KALENDAR!T20","v":0},{"$f":"KALENDAR!U20","v":""}]
[null,null,{"$f":"KALENDAR!C21","v":"2016-07-18"},{"$f":"KALENDAR!D21","v":0},{"$f":"KALENDAR!E21","v":0},{"$f":"KALENDAR!F21","v":"2016-07-19"},{"$f":"KALENDAR!G21","v":0},{"$f":"KALENDAR!H21","v":0},{"$f":"KALENDAR!I21","v":"2016-07-20"},{"$f":"KALENDAR!J21","v":0},{"$f":"KALENDAR!K21","v":0},{"$f":"KALENDAR!L21","v":"2016-07-21"},{"$f":"KALENDAR!M21","v":0},{"$f":"KALENDAR!N21","v":0},{"$f":"KALENDAR!O21","v":"2016-07-22"},{"$f":"KALENDAR!P21","v":0},{"$f":"KALENDAR!Q21","v":0},{"$f":"KALENDAR!R21","v":"2016-07-23"},{"$f":"KALENDAR!S21","v":0},{"$f":"KALENDAR!T21","v":0},{"$f":"KALENDAR!U21","v":"2016-07-24"}]
[null,null,{"$f":"KALENDAR!C22","v":""},{"$f":"KALENDAR!D22","v":0},{"$f":"KALENDAR!E22","v":0},{"$f":"KALENDAR!F22","v":"Radionica o strateškom planiranju"},{"$f":"KALENDAR!G22","v":0},{"$f":"KALENDAR!H22","v":0},{"$f":"KALENDAR!I22","v":"Čišćenje partka"},{"$f":"KALENDAR!J22","v":0},{"$f":"KALENDAR!K22","v":0},{"$f":"KALENDAR!L22","v":""},{"$f":"KALENDAR!M22","v":0},{"$f":"KALENDAR!N22","v":0},{"$f":"KALENDAR!O22","v":"Gradsko vijeće"},{"$f":"KALENDAR!P22","v":0},{"$f":"KALENDAR!Q22","v":0},{"$f":"KALENDAR!R22","v":""},{"$f":"KALENDAR!S22","v":0},{"$f":"KALENDAR!T22","v":0},{"$f":"KALENDAR!U22","v":""}]
[null,null,{"$f":"KALENDAR!C23","v":""},{"$f":"KALENDAR!D23","v":0},{"$f":"KALENDAR!E23","v":0},{"$f":"KALENDAR!F23","v":""},{"$f":"KALENDAR!G23","v":0},{"$f":"KALENDAR!H23","v":0},{"$f":"KALENDAR!I23","v":""},{"$f":"KALENDAR!J23","v":0},{"$f":"KALENDAR!K23","v":0},{"$f":"KALENDAR!L23","v":""},{"$f":"KALENDAR!M23","v":0},{"$f":"KALENDAR!N23","v":0},{"$f":"KALENDAR!O23","v":""},{"$f":"KALENDAR!P23","v":0},{"$f":"KALENDAR!Q23","v":0},{"$f":"KALENDAR!R23","v":""},{"$f":"KALENDAR!S23","v":0},{"$f":"KALENDAR!T23","v":0},{"$f":"KALENDAR!U23","v":""}]
[null,null,{"$f":"KALENDAR!C24","v":""},{"$f":"KALENDAR!D24","v":0},{"$f":"KALENDAR!E24","v":0},{"$f":"KALENDAR!F24","v":""},{"$f":"KALENDAR!G24","v":0},{"$f":"KALENDAR!H24","v":0},{"$f":"KALENDAR!I24","v":""},{"$f":"KALENDAR!J24","v":0},{"$f":"KALENDAR!K24","v":0},{"$f":"KALENDAR!L24","v":""},{"$f":"KALENDAR!M24","v":0},{"$f":"KALENDAR!N24","v":0},{"$f":"KALENDAR!O24","v":""},{"$f":"KALENDAR!P24","v":0},{"$f":"KALENDAR!Q24","v":0},{"$f":"KALENDAR!R24","v":""},{"$f":"KALENDAR!S24","v":0},{"$f":"KALENDAR!T24","v":0},{"$f":"KALENDAR!U24","v":""}]
[null,null,{"$f":"KALENDAR!C25","v":""},{"$f":"KALENDAR!D25","v":0},{"$f":"KALENDAR!E25","v":0},{"$f":"KALENDAR!F25","v":""},{"$f":"KALENDAR!G25","v":0},{"$f":"KALENDAR!H25","v":0},{"$f":"KALENDAR!I25","v":""},{"$f":"KALENDAR!J25","v":0},{"$f":"KALENDAR!K25","v":0},{"$f":"KALENDAR!L25","v":""},{"$f":"KALENDAR!M25","v":0},{"$f":"KALENDAR!N25","v":0},{"$f":"KALENDAR!O25","v":""},{"$f":"KALENDAR!P25","v":0},{"$f":"KALENDAR!Q25","v":0},{"$f":"KALENDAR!R25","v":""},{"$f":"KALENDAR!S25","v":0},{"$f":"KALENDAR!T25","v":0},{"$f":"KALENDAR!U25","v":""}]
[null,null,{"$f":"KALENDAR!C26","v":"2016-07-25"},{"$f":"KALENDAR!D26","v":0},{"$f":"KALENDAR!E26","v":0},{"$f":"KALENDAR!F26","v":"2016-07-26"},{"$f":"KALENDAR!G26","v":0},{"$f":"KALENDAR!H26","v":0},{"$f":"KALENDAR!I26","v":"2016-07-27"},{"$f":"KALENDAR!J26","v":0},{"$f":"KALENDAR!K26","v":0},{"$f":"KALENDAR!L26","v":"2016-07-28"},{"$f":"KALENDAR!M26","v":0},{"$f":"KALENDAR!N26","v":0},{"$f":"KALENDAR!O26","v":"2016-07-29"},{"$f":"KALENDAR!P26","v":0},{"$f":"KALENDAR!Q26","v":0},{"$f":"KALENDAR!R26","v":"2016-07-30"},{"$f":"KALENDAR!S26","v":0},{"$f":"KALENDAR!T26","v":0},{"$f":"KALENDAR!U26","v":"2016-07-31"}]
[null,null,{"$f":"KALENDAR!C27","v":""},{"$f":"KALENDAR!D27","v":0},{"$f":"KALENDAR!E27","v":0},{"$f":"KALENDAR!F27","v":"Šetnja centrom"},{"$f":"KALENDAR!G27","v":0},{"$f":"KALENDAR!H27","v":0},{"$f":"KALENDAR!I27","v":""},{"$f":"KALENDAR!J27","v":0},{"$f":"KALENDAR!K27","v":0},{"$f":"KALENDAR!L27","v":""},{"$f":"KALENDAR!M27","v":0},{"$f":"KALENDAR!N27","v":0},{"$f":"KALENDAR!O27","v":"Gradsko vijeće"},{"$f":"KALENDAR!P27","v":0},{"$f":"KALENDAR!Q27","v":0},{"$f":"KALENDAR!R27","v":""},{"$f":"KALENDAR!S27","v":0},{"$f":"KALENDAR!T27","v":0},{"$f":"KALENDAR!U27","v":""}]
[null,null,{"$f":"KALENDAR!C28","v":""},{"$f":"KALENDAR!D28","v":0},{"$f":"KALENDAR!E28","v":0},{"$f":"KALENDAR!F28","v":"Obilazak gostionica"},{"$f":"KALENDAR!G28","v":0},{"$f":"KALENDAR!H28","v":0},{"$f":"KALENDAR!I28","v":""},{"$f":"KALENDAR!J28","v":0},{"$f":"KALENDAR!K28","v":0},{"$f":"KALENDAR!L28","v":""},{"$f":"KALENDAR!M28","v":0},{"$f":"KALENDAR!N28","v":0},{"$f":"KALENDAR!O28","v":""},{"$f":"KALENDAR!P28","v":0},{"$f":"KALENDAR!Q28","v":0},{"$f":"KALENDAR!R28","v":""},{"$f":"KALENDAR!S28","v":0},{"$f":"KALENDAR!T28","v":0},{"$f":"KALENDAR!U28","v":""}]
[null,null,{"$f":"KALENDAR!C29","v":""},{"$f":"KALENDAR!D29","v":0},{"$f":"KALENDAR!E29","v":0},{"$f":"KALENDAR!F29","v":""},{"$f":"KALENDAR!G29","v":0},{"$f":"KALENDAR!H29","v":0},{"$f":"KALENDAR!I29","v":""},{"$f":"KALENDAR!J29","v":0},{"$f":"KALENDAR!K29","v":0},{"$f":"KALENDAR!L29","v":""},{"$f":"KALENDAR!M29","v":0},{"$f":"KALENDAR!N29","v":0},{"$f":"KALENDAR!O29","v":""},{"$f":"KALENDAR!P29","v":0},{"$f":"KALENDAR!Q29","v":0},{"$f":"KALENDAR!R29","v":""},{"$f":"KALENDAR!S29","v":0},{"$f":"KALENDAR!T29","v":0},{"$f":"KALENDAR!U29","v":""}]
[null,null,{"$f":"KALENDAR!C30","v":""},{"$f":"KALENDAR!D30","v":0},{"$f":"KALENDAR!E30","v":0},{"$f":"KALENDAR!F30","v":""},{"$f":"KALENDAR!G30","v":0},{"$f":"KALENDAR!H30","v":0},{"$f":"KALENDAR!I30","v":""},{"$f":"KALENDAR!J30","v":0},{"$f":"KALENDAR!K30","v":0},{"$f":"KALENDAR!L30","v":""},{"$f":"KALENDAR!M30","v":0},{"$f":"KALENDAR!N30","v":0},{"$f":"KALENDAR!O30","v":""},{"$f":"KALENDAR!P30","v":0},{"$f":"KALENDAR!Q30","v":0},{"$f":"KALENDAR!R30","v":""},{"$f":"KALENDAR!S30","v":0},{"$f":"KALENDAR!T30","v":0},{"$f":"KALENDAR!U30","v":""}]
[null,null,{"$f":"KALENDAR!C31","v":"2016-08-01"},{"$f":"KALENDAR!D31","v":0},{"$f":"KALENDAR!E31","v":0},{"$f":"KALENDAR!F31","v":"2016-08-02"},null,null,{"$f":"KALENDAR!I31","v":"NAPOMENE:"}]
[null,null,{"$f":"KALENDAR!C32","v":""},{"$f":"KALENDAR!D32","v":0},{"$f":"KALENDAR!E32","v":0},{"$f":"KALENDAR!F32","v":""}]
[null,null,{"$f":"KALENDAR!C33","v":""},{"$f":"KALENDAR!D33","v":0},{"$f":"KALENDAR!E33","v":0},{"$f":"KALENDAR!F33","v":""}]
[null,null,{"$f":"KALENDAR!C34","v":""},{"$f":"KALENDAR!D34","v":0},{"$f":"KALENDAR!E34","v":0},{"$f":"KALENDAR!F34","v":""}]
[null,null,{"$f":"KALENDAR!C35","v":""},{"$f":"KALENDAR!D35","v":0},{"$f":"KALENDAR!E35","v":0},{"$f":"KALENDAR!F35","v":""}]

{"sheet":"ADMINISTRATOR","index":3,"n_rows":14,"n_cols":3,"rows_kept":14,"hidden":true}
[]
[null,"MJESEC","BROJ"]
[null,"SIJEČANJ",1]
[null,"VELJAČA",2]
[null,"OŽUJAK",3]
[null,"TRAVANJ",4]
[null,"SVIBANJ",5]
[null,"LIPANJ",6]
[null,"SRPANJ",7]
[null,"KOLOVOZ",8]
[null,"RUJAN",9]
[null,"LISTOPAD",10]
[null,"STUDENI",11]
[null,"PROSINAC",12]